fUSD/lending_fUSD_20240210
["ID","MTS","AMOUNT","RATE_DAILY","PERIOD"]
[313691446,1707587312499,-822.03,0.0003863,30]
[313691447,1707587312529,-500.0,0.0003863,30]
[313691448,1707587312559,-500.0,0.0003863,30]
[313691449,1707587312590,-500.0,0.0003863,30]
[313691450,1707587312622,-1558.57,0.0003863,30]
[313691451,1707587312652,-500.0,0.0003863,30]
[313691452,1707587312683,-493.5509,0.0003863,30]
[313691453,1707587312713,-519.84,0.0003863,30]
[313691454,1707587312743,-500.0,0.0003863,30]
[313691455,1707587312773,-500.0,0.0003863,30]
[313691456,1707587312803,-520.2,0.0003863,30]
[313691457,1707587312834,-574.94,0.0003863,30]
[313691458,1707587312864,-726.91,0.0003863,30]
[313691459,1707587312894,-500.0,0.0003863,30]
[313691460,1707587312923,-500.0,0.0003863,30]
[313691461,1707587312953,-500.0,0.0003863,30]
[313691462,1707587312986,-500.0,0.00038904,30]
[313691463,1707587313016,-500.0,0.00038904,30]
[313691464,1707587313046,-500.0,0.00038904,30]
[313691465,1707587313076,-500.0,0.00038904,30]
[313691466,1707587313106,-500.0,0.00038904,30]
[313691467,1707587313138,-500.0,0.00038904,30]
[313691468,1707587313168,-695.9,0.00038904,30]
[313691469,1707587313199,-639.84,0.00038904,30]
[313691470,1707587313229,-500.0,0.00038904,30]
[313691471,1707587313261,-500.0,0.00038904,30]
[313691472,1707587313293,-500.0,0.00038904,30]
[313691473,1707587313326,-500.0,0.00038904,30]
[313691474,1707587313357,-500.0,0.00038904,30]
[313691475,1707587313390,-500.0,0.00038904,30]
[313691476,1707587313420,-500.0,0.00038904,30]
[313691477,1707587313451,-500.0,0.00038904,30]
[313691478,1707587313481,-500.0,0.00038904,30]
[313691479,1707587313512,-1431.68,0.00038904,30]
[313691480,1707587313543,-500.0,0.00038904,30]
[313691481,1707587313575,-1000.0,0.00038904,120]
[313691482,1707587313606,-500.0,0.00038904,30]
[313691483,1707587313637,-523.41,0.00038904,30]
[313691484,1707587313667,-1209.67,0.00038904,30]
[313691485,1707587313699,-727.64,0.00038904,30]
[313691486,1707587313731,-500.0,0.00038904,30]
[313691487,1707587313761,-520.83795501,0.00038904,30]
[313691488,1707587313791,-500.0,0.00038904,30]
[313691489,1707587313821,-1695.73,0.00038904,30]
[313691490,1707587313851,-500.0,0.00038904,30]
[313691491,1707587313881,-500.0,0.00038904,30]
[313691492,1707587313954,-500.0,0.00038904,30]
[313691493,1707587313985,-500.0,0.00038904,30]
[313691494,1707587314015,-636.9,0.00038904,30]
[313691495,1707587314045,-552.79,0.00038904,30]
[313691496,1707587314076,-500.0,0.00038904,30]
[313691497,1707587314107,-822.03,0.00038904,30]
[313691498,1707587314141,-969.79,0.00038904,30]
[313691499,1707587314171,-500.0,0.00038904,30]
[313691500,1707587314201,-500.0,0.00038904,30]
[313691501,1707587314233,-500.0,0.00038904,30]
[313691502,1707587314263,-1558.57,0.00038904,30]
[313691503,1707587314292,-500.0,0.00038904,30]
[313691504,1707587314324,-519.84,0.00038904,30]
[313691505,1707587314356,-500.0,0.00038904,30]
[313691506,1707587314388,-384.18735782,0.00038904,30]
[313691507,1707587314422,-520.2,0.00038904,30]
[313691508,1707587314453,-574.94,0.00038904,30]
[313691509,1707587314484,-726.91,0.00038904,30]
[313691510,1707587314513,-500.0,0.00038904,30]
[313691511,1707587314544,-500.0,0.00038904,30]
[313691512,1707587314580,-500.0,0.00038904,30]
[313691513,1707587314614,-500.0,0.00039178,30]
[313691514,1707587314648,-1566.47,0.00039178,30]
[313691515,1707587314678,-226.34758347,0.00039178,30]
[313691516,1707587314708,-500.0,0.00039178,30]
[313691517,1707587314739,-500.0,0.00039178,30]
[313691518,1707587314769,-500.0,0.00039178,30]
[313691519,1707587314800,-500.0,0.00039178,30]
[313691520,1707587314830,-695.9,0.00039178,30]
[313691521,1707587314861,-500.0,0.00039178,30]
[313691522,1707587314889,-639.84,0.00039178,30]
[313691523,1707587314919,-354.69,0.00039178,30]
[313691524,1707587314949,-500.0,0.00039178,30]
[313691525,1707587314979,-500.0,0.00039178,30]
[313691526,1707587315009,-461.46971202,0.00039178,30]
[313691527,1707587315039,-248.98231957,0.00039178,30]
[313691528,1707587315071,-500.0,0.00039178,30]
[313691529,1707587315102,-500.0,0.00039178,30]
[313691530,1707587315136,-500.0,0.00039178,30]
[313691531,1707587315177,-500.0,0.00039178,30]
[313691532,1707587315214,-1431.68,0.00039178,30]
[313691533,1707587315249,-500.0,0.00039178,30]
[313691534,1707587315286,-1000.0,0.00039178,120]
[313691535,1707587315320,-500.0,0.00039178,30]
[313691536,1707587315353,-523.41,0.00039178,30]
[313691537,1707587315386,-1209.67,0.00039178,30]
[313691538,1707587315420,-727.64,0.00039178,30]
[313691539,1707587315453,-500.0,0.00039178,30]
[313691540,1707587315486,-500.0,0.00039178,30]
[313691541,1707587315517,-1695.73,0.00039178,30]
[313691542,1707587315548,-500.0,0.00039178,30]
[313691543,1707587315579,-500.0,0.00039178,30]
[313691544,1707587315611,-500.0,0.00039178,30]
[313691545,1707587315647,-500.0,0.00039178,30]
[313691546,1707587315679,-636.9,0.00039178,30]
[313691547,1707587315711,-552.79,0.00039178,30]
[313691548,1707587315743,-500.0,0.00039178,30]
[313691549,1707587315778,-822.03,0.00039178,30]
[313691550,1707587315811,-969.79,0.00039178,30]
[313691551,1707587315842,-500.0,0.00039178,30]
[313691552,1707587315873,-500.0,0.00039178,30]
[313691553,1707587315904,-500.0,0.00039178,30]
[313691554,1707587315938,-1558.57,0.00039178,30]
[313691555,1707587315973,-500.0,0.00039178,30]
[313691556,1707587316005,-519.84,0.00039178,30]
[313691557,1707587316040,-500.0,0.00039178,30]
[313691558,1707587316070,-520.2,0.00039178,30]
[313691559,1707587316102,-574.94,0.00039178,30]
[313691560,1707587316133,-726.91,0.00039178,30]
[313691561,1707587316166,-500.0,0.00039178,30]
[313691562,1707587316197,-500.0,0.00039178,30]
[313691563,1707587316229,-1566.47,0.00039452,30]
[313691564,1707587316262,-500.0,0.00039452,30]
[313691565,1707587316293,-500.0,0.00039452,30]
[313691566,1707587316324,-500.0,0.00039452,30]
[313691567,1707587316356,-481.21,0.00039452,30]
[313691568,1707587316389,-500.0,0.00039452,30]
[313691569,1707587316420,-500.0,0.00039452,30]
[313691570,1707587316453,-695.9,0.00039452,30]
[313691571,1707587316483,-639.84,0.00039452,30]
[313691572,1707587316514,-500.0,0.00039452,30]
[313691573,1707587316544,-500.0,0.00039452,30]
[313691574,1707587316577,-500.0,0.00039452,30]
[313691575,1707587316608,-500.0,0.00039452,30]
[313691576,1707587316642,-500.0,0.00039452,30]
[313691577,1707587316672,-500.0,0.00039452,30]
[313691578,1707587316703,-1431.68,0.00039452,30]
[313691579,1707587316736,-500.0,0.00039452,30]
[313691580,1707587316766,-1000.0,0.00039452,120]
[313691581,1707587316796,-500.0,0.00039452,30]
[313691582,1707587316828,-523.41,0.00039452,30]
[313691583,1707587316858,-1209.67,0.00039452,30]
[313691584,1707587316889,-727.64,0.00039452,30]
[313691585,1707587316919,-500.0,0.00039452,30]
[313691586,1707587316949,-500.0,0.00039452,30]
[313691587,1707587316979,-1695.73,0.00039452,30]
[313691588,1707587317010,-500.0,0.00039452,30]
[313691589,1707587317040,-500.0,0.00039452,30]
[313691590,1707587317070,-500.0,0.00039452,30]
[313691591,1707587317101,-500.0,0.00039452,30]
[313691592,1707587317131,-636.9,0.00039452,30]
[313691593,1707587317165,-552.79,0.00039452,30]
[313691594,1707587317197,-822.03,0.00039452,30]
[313691595,1707587317229,-969.79,0.00039452,30]
[313691596,1707587317261,-500.0,0.00039452,30]
[313691597,1707587317408,-500.0,0.00039452,30]
[313691598,1707587317440,-500.0,0.00039452,30]
[313691599,1707587317470,-500.0,0.00039452,30]
[313691600,1707587317500,-519.84,0.00039452,30]
[313691601,1707587317529,-263.36002979,0.00039452,30]
[313691602,1707587317560,-574.94,0.00039452,30]
[313691603,1707587317591,-520.2,0.00039452,30]
[313691604,1707587317624,-726.91,0.00039452,30]
[313691605,1707587317655,-500.0,0.00039452,30]
[313691606,1707587317685,-500.0,0.00039452,30]
[313691607,1707587317721,-268.71108606,0.00039726,30]
[313691608,1707587317752,-500.0,0.00039726,30]
[313691609,1707587317783,-500.0,0.00039726,30]
[313691610,1707587317815,-500.0,0.00039726,30]
[313691611,1707587317847,-500.0,0.00039726,30]
[313691612,1707587317880,-500.0,0.00039726,30]
[313691613,1707587317914,-500.0,0.00039726,30]
[313691614,1707587317948,-500.0,0.00039726,30]
[313691615,1707587317979,-537.38,0.00039726,30]
[313691616,1707587318011,-500.0,0.00039726,30]
[313691617,1707587318041,-500.0,0.00039726,30]
[313691618,1707587318073,-500.0,0.00039726,30]
[313691619,1707587318108,-940.17,0.00039726,30]
[313691620,1707587318141,-2058.09,0.00039726,30]
[313691621,1707587318173,-533.26,0.00039726,30]
[313691622,1707587318205,-500.0,0.00039726,30]
[313691623,1707587318236,-500.0,0.00039726,30]
[313691624,1707587318268,-500.0,0.00039726,30]
[313691625,1707587318299,-500.0,0.00039726,30]
[313691626,1707587318330,-507.56,0.00039726,30]
[313691627,1707587318360,-500.0,0.00039726,30]
[313691628,1707587318392,-500.0,0.00039726,30]
[313691629,1707587318429,-653.17,0.00039726,30]
[313691630,1707587318462,-597.56,0.00039726,30]
[313691631,1707587318493,-500.0,0.00039726,30]
[313691632,1707587318524,-1566.47,0.00039726,30]
[313691633,1707587318554,-500.0,0.00039726,30]
[313691634,1707587318588,-500.0,0.00039726,30]
[313691635,1707587318619,-500.0,0.00039726,30]
[313691636,1707587318651,-491.93159003,0.00039726,30]
[313691637,1707587318682,-695.9,0.00039726,30]
[313691638,1707587318715,-639.84,0.00039726,30]
[313691639,1707587318746,-500.0,0.00039726,30]
[313691640,1707587318781,-500.0,0.00039726,30]
[313691641,1707587318812,-500.0,0.00039726,30]
[313691642,1707587318843,-500.0,0.00039726,30]
[313691643,1707587318874,-500.0,0.00039726,30]
[313691644,1707587318904,-500.0,0.00039726,30]
[313691645,1707587318934,-1431.68,0.00039726,30]
[313691646,1707587318964,-360.92267373,0.00039726,30]
[313691647,1707587318995,-1000.0,0.00039726,120]
[313691648,1707587319024,-500.0,0.00039726,30]
[313691649,1707587319055,-523.41,0.00039726,30]
[313691650,1707587319087,-1209.67,0.00039726,30]
[313691651,1707587319118,-727.64,0.00039726,30]
[313691652,1707587319151,-500.0,0.00039726,30]
[313691653,1707587319182,-500.0,0.00039726,30]
[313691654,1707587319213,-1695.73,0.00039726,30]
[313691655,1707587319244,-500.0,0.00039726,30]
[313691656,1707587319275,-500.0,0.00039726,30]
[313691657,1707587319306,-500.0,0.00039726,30]
[313691658,1707587319339,-500.0,0.00039726,30]
[313691659,1707587319373,-636.9,0.00039726,30]
[313691660,1707587319407,-552.79,0.00039726,30]
[313691661,1707587319439,-969.79,0.00039726,30]
[313691662,1707587319470,-822.03,0.00039726,30]
[313691663,1707587319501,-500.0,0.00039726,30]
[313691664,1707587319532,-500.0,0.00039726,30]
[313691665,1707587319563,-500.0,0.00039726,30]
[313691666,1707587319593,-500.0,0.00039726,30]
[313691667,1707587319626,-519.84,0.00039726,30]
[313691668,1707587319657,-574.94,0.00039726,30]
[313691669,1707587319689,-520.2,0.00039726,30]
[313691670,1707587319720,-726.91,0.00039726,30]
[313691671,1707587319752,-500.0,0.00039726,30]
[313691672,1707587319786,-500.0,0.00039726,30]
[313691673,1707587319816,-20500.0,0.000399,60]
[313691674,1707587319847,-1311.0,0.0003998,120]
[313691675,1707587319881,-2215.22553446,0.0004,30]
[313691676,1707587319913,-5000.0,0.0004,120]
[313691677,1707587319943,-5000.0,0.0004,120]
[313691678,1707587319974,-203085.16177067,0.0004,120]
[313691679,1707587320003,-515.79576364,0.0004,30]
[313691680,1707587320033,-2879.20036242,0.0004,30]
[313691681,1707587320063,-1711.0,0.0004,30]
[313691682,1707587320093,-300.0,0.0004,41]
[313691683,1707587320124,-1236.67209304,0.0004,30]
[313691684,1707587320157,-10000.0,0.0004,30]
[313691685,1707587320435,-10000.0,0.0004,30]
[313691686,1707587320470,-10000.0,0.0004,30]
[313691687,1707587320501,-10000.0,0.0004,30]
[313691688,1707587320533,-10000.0,0.0004,30]
[313691689,1707587320563,-10000.0,0.0004,30]
[313691690,1707587320594,-10000.0,0.0004,30]
[313691691,1707587320628,-10000.0,0.0004,30]
[313691692,1707587320659,-10000.0,0.0004,30]
[313691693,1707587320690,-10000.0,0.0004,30]
[313691694,1707587320723,-10000.0,0.0004,30]
[313691695,1707587320753,-705.0,0.0004,30]
[313691696,1707587320786,-993.80292388,0.0004,30]
[313691697,1707587320816,-5000.0,0.0004,30]
[313691698,1707587320847,-500.0,0.0004,30]
[313691699,1707587320878,-500.0,0.0004,30]
[313691700,1707587320908,-500.0,0.0004,30]
[313691701,1707587320939,-512.31,0.0004,30]
[313691702,1707587320969,-500.0,0.0004,30]
[313691703,1707587321001,-500.0,0.0004,30]
[313691704,1707587321032,-532.40960482,0.0004,30]
[313691705,1707587321064,-200.0,0.0004,30]
[313691706,1707587321094,-2613.64138121,0.0004,120]
[313691707,1707587321127,-310.47,0.0004,30]
[313691708,1707587321161,-251.65970281,0.0004,30]
[313691709,1707587321195,-1000.0,0.0004,30]
[313691710,1707587321228,-8256.0,0.0004,120]
[313691711,1707587321258,-193.35394068,0.0004,120]
[313691712,1707587321292,-15388.0,0.0004,30]
[313691713,1707587321327,-4379.7,0.0004,120]
[313691714,1707587321362,-5000.0,0.0004,40]
[313691715,1707587321396,-7158.50982337,0.0004,30]
[313691716,1707587321431,-5000.0,0.0004,30]
[313691717,1707587321462,-494.27468616,0.0004,30]
[313691718,1707587321498,-312.84467692,0.0004,30]
[313691719,1707587321530,-213.0,0.0004,30]
[313691720,1707587321564,-73565.0973696,0.0004,30]
[313691721,1707587321597,-9300.24985026,0.0004,30]
[313691722,1707587321630,-14523.11816258,0.0004,30]
[313691723,1707587321663,-17405.67786114,0.0004,30]
[313691724,1707587321697,-56830.79642265,0.0004,30]
[313691725,1707587321729,-135661.72134843,0.0004,30]
[313691726,1707587321759,-1084.73,0.0004,30]
[313691727,1707587321790,-500.0,0.0004,30]
[313691728,1707587321821,-700.22,0.0004,30]
[313691729,1707587321852,-500.0,0.0004,30]
[313691730,1707587321883,-500.0,0.0004,30]
[313691731,1707587321917,-500.0,0.0004,30]
[313691732,1707587321947,-500.0,0.0004,30]
[313691733,1707587321978,-743.57,0.0004,30]
[313691734,1707587322008,-500.0,0.0004,30]
[313691735,1707587322039,-794.2,0.0004,30]
[313691736,1707587322069,-500.0,0.0004,30]
[313691737,1707587322103,-16437.50190733,0.0004,30]
[313691738,1707587322135,-500.0,0.0004,30]
[313691739,1707587322166,-533.56,0.0004,30]
[313691740,1707587322197,-500.0,0.0004,30]
[313691741,1707587322229,-500.0,0.0004,30]
[313691742,1707587322262,-513.21,0.0004,30]
[313691743,1707587322294,-506.34,0.0004,30]
[313691744,1707587322327,-500.0,0.0004,30]
[313691745,1707587322358,-500.0,0.0004,30]
[313691746,1707587322391,-543.5,0.0004,30]
[313691747,1707587322423,-500.0,0.0004,30]
[313691748,1707587322454,-500.0,0.0004,30]
[313691749,1707587322485,-500.0,0.0004,30]
[313691750,1707587322521,-500.0,0.0004,30]
[313691751,1707587322553,-500.0,0.0004,30]
[313691752,1707587322588,-643.45,0.0004,30]
[313691753,1707587322620,-594.35,0.0004,30]
[313691754,1707587322653,-500.0,0.0004,30]
[313691755,1707587322685,-500.0,0.0004,30]
[313691756,1707587322716,-500.0,0.0004,30]
[313691757,1707587322748,-500.0,0.0004,30]
[313691758,1707587322778,-500.0,0.0004,30]
[313691759,1707587322809,-500.0,0.0004,30]
[313691760,1707587322840,-500.0,0.0004,30]
[313691761,1707587322870,-636.08,0.0004,30]
[313691762,1707587322900,-500.0,0.0004,30]
[313691763,1707587322930,-602.33639635,0.0004,30]
[313691764,1707587322961,-500.0,0.0004,30]
[313691765,1707587322991,-506.82,0.0004,30]
[313691766,1707587323022,-500.0,0.0004,30]
[313691767,1707587323053,-500.0,0.0004,30]
[313691768,1707587323084,-500.0,0.0004,30]
[313691769,1707587323114,-500.0,0.0004,30]
[313691770,1707587323146,-500.0,0.0004,30]
[313691771,1707587323176,-500.0,0.0004,30]
[313691772,1707587323209,-500.0,0.0004,30]
[313691773,1707587323240,-500.0,0.0004,30]
[313691774,1707587323272,-500.0,0.0004,30]
[313691775,1707587323303,-500.0,0.0004,30]
[313691776,1707587323334,-500.0,0.0004,30]
[313691777,1707587323365,-500.0,0.0004,30]
[313691778,1707587323396,-500.0,0.0004,30]
[313691779,1707587323427,-1343.72,0.0004,30]
[313691780,1707587323458,-500.0,0.0004,30]
[313691781,1707587323490,-630.33,0.0004,30]
[313691782,1707587323520,-500.0,0.0004,30]
[313691783,1707587323551,-1359.44,0.0004,30]
[313691784,1707587323582,-617.86,0.0004,30]
[313691785,1707587323612,-500.0,0.0004,30]
[313691786,1707587323643,-500.0,0.0004,30]
[313691787,1707587323675,-849.56,0.0004,30]
[313691788,1707587323705,-1189.34,0.0004,30]
[313691789,1707587323735,-515.6,0.0004,30]
[313691790,1707587323766,-500.0,0.0004,30]
[313691791,1707587323797,-500.0,0.0004,30]
[313691792,1707587323827,-731.92,0.0004,30]
[313691793,1707587323858,-500.0,0.0004,30]
[313691794,1707587323890,-500.0,0.0004,30]
[313691795,1707587323921,-525.58,0.0004,30]
[313691796,1707587323952,-977.73,0.0004,30]
[313691797,1707587323983,-500.0,0.0004,30]
[313691798,1707587324013,-561.13,0.0004,30]
[313691799,1707587324043,-1026.02,0.0004,30]
[313691800,1707587324073,-500.0,0.0004,30]
[313691801,1707587324103,-1242.56,0.0004,30]
[313691802,1707587324133,-645.83,0.0004,30]
[313691803,1707587324164,-500.0,0.0004,30]
[313691804,1707587324197,-500.0,0.0004,30]
[313691805,1707587324229,-500.0,0.0004,30]
[313691806,1707587324264,-873.15,0.0004,30]
[313691807,1707587324297,-500.0,0.0004,30]
[313691808,1707587324328,-529.55,0.0004,30]
[313691809,1707587324360,-779.81,0.0004,30]
[313691810,1707587324392,-1056.2,0.0004,30]
[313691811,1707587324422,-500.0,0.0004,30]
[313691812,1707587324453,-519.82,0.0004,30]
[313691813,1707587324498,-678.81,0.0004,30]
[313691814,1707587324527,-500.0,0.0004,30]
[313691815,1707587324557,-705.9,0.0004,30]
[313691816,1707587324587,-1052.93,0.0004,30]
[313691817,1707587324618,-500.0,0.0004,30]
[313691818,1707587324649,-684.62,0.0004,30]
[313691819,1707587324680,-1004.11,0.0004,30]
[313691820,1707587324713,-711.92,0.0004,30]
[313691821,1707587324744,-500.0,0.0004,30]
[313691822,1707587324776,-667.08,0.0004,30]
[313691823,1707587324806,-754.28,0.0004,30]
[313691824,1707587324837,-500.0,0.0004,30]
[313691825,1707587324877,-500.0,0.0004,30]
[313691826,1707587324912,-509.63,0.0004,30]
[313691827,1707587324943,-1382.71,0.0004,30]
[313691828,1707587324974,-1447.85,0.0004,30]
[313691829,1707587325011,-1223.13,0.0004,30]
[313691830,1707587325042,-611.01,0.0004,30]
[313691831,1707587325073,-969.91,0.0004,30]
[313691832,1707587325106,-1057.09,0.0004,30]
[313691833,1707587325138,-672.89,0.0004,30]
[313691834,1707587325172,-250.0,0.0004,30]
[313691835,1707587325213,-500.0,0.0004,30]
[313691836,1707587325255,-1517.8,0.0004,30]
[313691837,1707587325294,-1316.97,0.0004,30]
[313691838,1707587325329,-738.23,0.0004,30]
[313691839,1707587325364,-500.0,0.0004,30]
[313691840,1707587325400,-1631.07,0.0004,30]
[313691841,1707587325437,-500.0,0.0004,30]
[313691842,1707587325476,-8742.87532175,0.0004,30]
[313691843,1707587325515,-706.87,0.0004,30]
[313691844,1707587325552,-765.85,0.0004,30]
[313691845,1707587325592,-1109.61,0.0004,30]
[313691846,1707587325627,-1493.22,0.0004,30]
[313691847,1707587325660,-500.0,0.0004,30]
[313691848,1707587325696,-1173.55,0.0004,30]
[313691849,1707587325731,-514.5,0.0004,30]
[313691850,1707587325766,-500.0,0.0004,30]
[313691851,1707587325801,-1076.65,0.0004,30]
[313691852,1707587325837,-500.0,0.0004,30]
[313691853,1707587325872,-500.0,0.0004,30]
[313691854,1707587325911,-1126.72,0.0004,30]
[313691855,1707587325946,-500.0,0.0004,30]
[313691856,1707587325980,-500.0,0.0004,30]
[313691857,1707587326023,-1151.29,0.0004,30]
[313691858,1707587326060,-1633.0,0.0004,30]
[313691859,1707587326096,-500.0,0.0004,30]
[313691860,1707587326135,-500.0,0.0004,30]
[313691861,1707587326812,-500.0,0.0004,30]
[313691862,1707587326888,-1429.03,0.0004,30]
[313691863,1707587326925,-500.0,0.0004,30]
[313691864,1707587326958,-623.04,0.0004,30]
[313691865,1707587326991,-416.72,0.0004,30]
[313691866,1707587327023,-500.0,0.0004,30]
[313691867,1707587327060,-500.0,0.0004,30]
[313691868,1707587327093,-1193.5,0.0004,30]
[313691869,1707587327126,-1288.88,0.0004,30]
[313691870,1707587327159,-500.0,0.0004,30]
[313691871,1707587327192,-377.55,0.0004,30]
[313691872,1707587327225,-1073.46,0.0004,30]
[313691873,1707587327258,-1221.03,0.0004,30]
[313691874,1707587327290,-500.0,0.0004,30]
[313691875,1707587327322,-500.0,0.0004,30]
[313691876,1707587327356,-500.0,0.0004,30]
[313691877,1707587327393,-1296.34,0.0004,30]
[313691878,1707587327425,-500.0,0.0004,30]
[313691879,1707587327460,-677.17,0.0004,30]
[313691880,1707587327493,-1153.81,0.0004,30]
[313691881,1707587327525,-984.72,0.0004,30]
[313691882,1707587327557,-500.0,0.0004,30]
[313691883,1707587327589,-1897.56,0.0004,30]
[313691884,1707587327621,-555.2,0.0004,30]
[313691885,1707587327654,-500.0,0.0004,30]
[313691886,1707587327687,-542.42,0.0004,30]
[313691887,1707587327721,-500.0,0.0004,30]
[313691888,1707587327758,-573.6,0.0004,30]
[313691889,1707587327790,-500.0,0.0004,30]
[313691890,1707587327821,-500.0,0.0004,30]
[313691891,1707587327852,-500.0,0.0004,30]
[313691892,1707587327883,-1609.58,0.0004,30]
[313691893,1707587327915,-1423.85,0.0004,30]
[313691894,1707587327946,-500.0,0.0004,30]
[313691895,1707587327981,-1220.89,0.0004,30]
[313691896,1707587328013,-500.0,0.0004,30]
[313691897,1707587328045,-500.0,0.0004,30]
[313691898,1707587328076,-627.76,0.0004,30]
[313691899,1707587328109,-586.63,0.0004,30]
[313691900,1707587328141,-1575.17,0.0004,30]
[313691901,1707587328174,-500.0,0.0004,30]
[313691902,1707587328207,-500.0,0.0004,30]
[313691903,1707587328244,-2197.66,0.0004,30]
[313691904,1707587328277,-849.0,0.0004,30]
[313691905,1707587328312,-500.0,0.0004,30]
[313691906,1707587328345,-529.49,0.0004,30]
[313691907,1707587328378,-500.0,0.0004,30]
[313691908,1707587328411,-2142.16,0.0004,30]
[313691909,1707587328444,-1257.96,0.0004,30]
[313691910,1707587328478,-847.82,0.0004,30]
[313691911,1707587328513,-500.0,0.0004,30]
[313691912,1707587328546,-500.0,0.0004,30]
[313691913,1707587328578,-500.0,0.0004,30]
[313691914,1707587328609,-500.0,0.0004,30]
[313691915,1707587328642,-587.75,0.0004,30]
[313691916,1707587328674,-1504.28,0.0004,30]
[313691917,1707587328706,-773.57,0.0004,30]
[313691918,1707587328739,-1079.05,0.0004,30]
[313691919,1707587328769,-500.0,0.0004,30]
[313691920,1707587328803,-1348.64,0.0004,30]
[313691921,1707587328839,-872.64,0.0004,30]
[313691922,1707587328871,-500.0,0.0004,30]
[313691923,1707587328904,-500.0,0.0004,30]
[313691924,1707587328937,-1396.29,0.0004,30]
[313691925,1707587328970,-500.0,0.0004,30]
[313691926,1707587329003,-1241.2,0.0004,30]
[313691927,1707587329035,-500.0,0.0004,30]
[313691928,1707587329069,-500.0,0.0004,30]
[313691929,1707587329102,-500.0,0.0004,30]
[313691930,1707587329136,-695.42,0.0004,30]
[313691931,1707587329171,-4903.15,0.0004,30]
[313691932,1707587329204,-500.0,0.0004,30]
[313691933,1707587329239,-514.73,0.0004,30]
[313691934,1707587329273,-500.0,0.0004,30]
[313691935,1707587329310,-3083.4,0.0004,30]
[313691936,1707587329345,-500.0,0.0004,30]
[313691937,1707587329378,-500.0,0.0004,30]
[313691938,1707587329412,-855.61,0.0004,30]
[313691939,1707587329444,-527.2,0.0004,30]
[313691940,1707587329475,-500.0,0.0004,30]
[313691941,1707587329506,-500.0,0.0004,30]
[313691942,1707587329539,-500.0,0.0004,30]
[313691943,1707587329571,-500.0,0.0004,30]
[313691944,1707587329602,-500.0,0.0004,30]
[313691945,1707587329634,-500.0,0.0004,30]